Cogmind - Beta 15 @@@ ROGUE MODE // 2025.06.17 @ 16:44:48 Player: dbb Result: Destroyed by H-61 Shepherd with Heavy Assault Cannon Performance ------------- Evolutions (2) 1000 Regions Visited (5) 1000 Robots Destroyed (31) 155 Value Destroyed (811) 811 Prototype IDs (25) 500 Alien Tech Used (0) 0 Bonus (458) 458 TOTAL SCORE: 3924 Bonus ------- Follower Combat Kills 158 Aligned with FarCom 300 Cogmind --------- Core Integrity 0/550 Matter 300/300 Energy 100/100 System Corruption 0% Temperature Cool (0) Movement Core (1400) Ox27 Location -8/Materials Parts ------- > --- POWER (2) -------- (None) > --- PROPULSION (3) --- (None) > --- UTILITY (4) ------ Huge Storage Unit Improved Terrain Scanner Hacking Suite > --- WEAPON (2) ------- Katana > --- INVENTORY (25) --- Light Nuclear Core Wheel Flight Unit Flight Unit Large Storage Unit Large Storage Unit Weight Redist. System Advanced Weight Redist. System Sensor Array Signal Interpreter ECM Suite Utility Shielding Splice Drone Bay (6/6) Grenade Launcher Mini Grenade Launcher Mini Grenade Launcher Datajack Deploy-a-Sentry Deploy-a-Sentry Deploy-a-Sentry Peak State ------------ > --- POWER ------------ Improved Ion Engine Light Nuclear Core > --- PROPULSION ------- Light Treads Light Treads Light Treads > --- UTILITY ---------- Huge Storage Unit Improved Light Armor Plating Hacking Suite Splice Drone Bay > --- WEAPON ----------- Light Assault Rifle Katana > --- INVENTORY -------- Light Nuclear Core Wheel Flight Unit Flight Unit Large Storage Unit Large Storage Unit Weight Redist. System Sensor Array Signal Interpreter Improved Terrain Scanner ECM Suite Utility Shielding Grenade Launcher Datajack Deploy-a-Sentry Deploy-a-Sentry Deploy-a-Sentry [Rating: 30] Favorites ----------- Power Improved Ion Engine Engine Improved Ion Engine Power Core Light Nuclear Core Propulsion Light Treads Treads Light Treads Wheel Wheel Utility Hacking Suite Device Improved Terrain Scanner Storage Huge Storage Unit Processor Signal Interpreter Hackware Hacking Suite Protection Improved Light Armor Plating Weapon Heavy Assault Rifle Ballistic Gun Heavy Assault Rifle Launcher Grenade Launcher Slashing Weapon Katana Special Melee Weapon Datajack Build | -11 -10 -10 -10 -9 -8 ------- Run | Yrd Mat Min Exi Min Mat Slots Evolved 4 | . . . . . 4 Power 1 | . . . . . 1 Propulsion 1 | . . . . . 1 Utility 2 | . . . . . 2 Weapon . | . . . . . . Parts Attached 39 | 7 9 3 1 1 18 Power 7 | 1 1 . . . 5 Engine 4 | 1 1 . . . 2 Core 3 | . . . . . 3 Reactor . | . . . . . . Propulsion 8 | 2 1 . . . 5 Treads 7 | 2 1 . . . 4 Leg . | . . . . . . Wheel 1 | . . . . . 1 Hover . | . . . . . . Flight . | . . . . . . Utility 13 | 2 3 2 1 . 5 Device 5 | 1 . . . . 4 Storage 5 | 1 2 1 1 . . Processor 1 | . . 1 . . . Hackware 1 | . 1 . . . . Protection 1 | . . . . . 1 Artifact . | . . . . . . Weapon 11 | 2 4 1 . 1 3 Energy Gun . | . . . . . . Energy Cannon . | . . . . . . Ballistic Gun 8 | 2 3 . . 1 2 Ballistic Cannon . | . . . . . . Launcher 1 | . 1 . . . . Special Weapon . | . . . . . . Impact Weapon . | . . . . . . Slashing Weapon 1 | . . . . . 1 Piercing Weapon . | . . . . . . Special Melee Weapon 1 | . . 1 . . . Unidentified Prototypes 2 | . . . . . 2 Parts Lost 23 | . 1 . . . 22 Power 6 | . . . . . 6 Propulsion 7 | . . . . . 7 Utility 4 | . 1 . . . 3 Weapon 6 | . . . . . 6 Highest Loss Streak 7 | . 1 . . . 7 To Critical Strikes . | . . . . . . Average Backups 13 | . 5 13 16 16 15 Power 1 | . 1 1 2 2 1 Propulsion 1 | . . . 1 1 2 Utility 7 | . 2 6 8 9 8 Weapon 2 | . 1 2 4 3 1 Tool/Special . | . . . . . . Unused Backups 12 | . 1 . . . 11 Power 2 | . 1 . . . 1 Propulsion 2 | . . . . . 2 Utility 6 | . . . . . 6 Weapon 2 | . . . . . 2 Tool/Special . | . . . . . . Average Slot Usage (%) 92 | . 97 100 82 100 89 Engine 12 | . 14 14 14 14 8 Core 2 | . . . . . 7 Treads 26 | . 28 28 28 28 21 Device 3 | . 4 . . . 8 Storage 12 | . 14 14 14 14 9 Hackware 11 | . 7 14 14 14 9 Protection 1 | . . . . . 6 Ballistic Gun 16 | . 27 27 . 27 11 Slashing Weapon 1 | . . . . . 5 Special Melee Weapon 2 | . . . 10 . . Peak Build Rating 30 | 7 14 14 14 18 30 Average Rating 16 | 5 9 13 11 17 24 On Entrance 11 | . 7 14 14 13 18 Naked Turns . | . . . . . . Heaviest Build 107 | 13 33 33 88 93 107 Greatest Support 60 | 40 40 40 40 40 60 Greatest Overweight (x) 33 | . . . 2 2 33 Average Overweight (x) 1 | . . . 2 2 2 Largest Inventory Capacity 25 | 8 15 15 25 25 25 Average Capacity 21 | 7 10 14 25 25 25 Most Carried 21 | 2 14 15 19 21 20 Average Carried 15 | 1 5 13 17 19 18 Final Capacity 25 | 8 15 15 25 25 25 Final Carried 21 | 2 14 15 19 21 20 Class Distribution -------------------- 76% | Mutant 19% | Scavenger-Assassin 4% | Scavenger-Mutant Dominant Class ---------------- Mutant | -10/Materials Mutant | -10/Mines Mutant | -10/Exiles Mutant | -9/Mines Scavenger-Assassin | -8/Materials Resources | -11 -10 -10 -10 -9 -8 ----------- Run | Yrd Mat Min Exi Min Mat Matter Collected 1037 | 278 149 147 . 101 362 Remotely . | . . . . . . Salvage Created 1207 | 118 407 . . . 682 Parts 64 | 5 28 . . . 31 Haulers Intercepted 4 | . 2 . . . 2 Recyclers Shooed . | . . . . . . Parts Field Recycled . | . . . . . . Retrieved Matter . | . . . . . . Parts Self-Destructed . | . . . . . . Prevented . | . . . . . . Kills | -11 -10 -10 -10 -9 -8 ------- Run | Yrd Mat Min Exi Min Mat Combat Hostiles Destroyed 22 | . 8 . . . 14 Melee 2 | . . . . . 2 Guns 18 | . 8 . . . 10 AOE 2 | . . . . . 2 Classes Destroyed 9 | 2 4 . . . 3 Builder 1 | . . . . . 1 Tunneler 1 | 1 . . . . . Hauler 4 | . 2 . . . 2 Recycler 1 | 1 . . . . . Operator 2 | . 1 . . . 1 Swarmer 7 | . 3 . . . 4 Grunt 12 | . 5 . . . 7 Sentry 2 | . . . . . 2 Hunter 1 | . . . . . 1 Best Kill Streak 7 | 1 3 . . . 7 Combat Bots Only 7 | . 3 . . . 7 Max Kills in Single Turn 2 | 1 1 . . . 2 Gunslinging 1 | . . . . . 1 Exploded 1 | . . . . . 1 Melee 1 | . . . . . 1 Uniques/NPCs Destroyed . | . . . . . . Combat | -11 -10 -10 -10 -9 -8 -------- Run | Yrd Mat Min Exi Min Mat Hostile Shots Fired 302 | . 40 7 . 1 254 Missed 88 | . 11 5 . . 72 Hits 214 | . 29 2 . 1 182 Melee 4 | . . 2 . . 2 Projectile 210 | . 29 . . 1 180 Critical Strikes 8 | . 1 . . . 7 Damage Taken 3331 | . 370 53 . 7 2901 Core 679 | . 96 . . . 583 Absorbed by Shields . | . . . . . . Core Remaining (%) 80 | 100 . . . 61 . Volleys Fired 105 | 10 43 4 . . 48 Largest 2 | 2 2 2 . . 2 Hottest 50 | 40 46 46 . . 50 Shots Fired 188 | 20 84 8 . 2 74 Gun 184 | 20 82 8 . 2 72 Cannon . | . . . . . . Launcher 4 | . 2 . . . 2 Special . | . . . . . . Kinetic 184 | 20 82 8 . 2 72 Thermal . | . . . . . . Explosive 4 | . 2 . . . 2 Electromagnetic . | . . . . . . Robot Hit Streak 12 | 4 8 4 . . 12 Robot Miss Streak 3 | 1 3 2 . 2 2 Penetration Max . | . . . . . . Secondary Targets 2 | . . . . . 2 Max Gunslinging Chain 1 | . . . . . 1 Shots Hit Robots 127 | 14 46 4 . . 63 Core Hits 62 | 5 23 2 . . 32 Critical Kills 2 | . 2 . . . . Critical Parts Destroyed . | . . . . . . Critical Strikes 3 | . 2 . . . 1 Destroy 2 | . 2 . . . . Sever 1 | . . . . . 1 Melee Attacks 10 | . . . . . 10 Impact . | . . . . . . Slashing 10 | . . . . . 10 Piercing . | . . . . . . Sneak Attacks 1 | . . . . . 1 Combat Hostiles . | . . . . . . Follow-up Attacks . | . . . . . . Damage Inflicted 1651 | 106 399 58 . . 1088 Guns 1243 | 106 399 50 . . 688 Cannons . | . . . . . . Explosions 243 | . . . . . 243 Melee 157 | . . . . . 157 Ramming 8 | . . 8 . . . Kinetic 1243 | 106 399 50 . . 688 Thermal . | . . . . . . Explosive 243 | . . . . . 243 Electromagnetic . | . . . . . . Impact . | . . . . . . Slashing 157 | . . . . . 157 Piercing . | . . . . . . Highest Corruption 2 | . 2 2 2 2 . Average Corruption 2 | . 2 2 2 2 . Corruption Purged . | . . . . . . Corruption Blocked . | . . . . . . Effects 42 | . 1 5 15 21 . Message Errors 11 | . . 1 1 9 . Matter Fused 10 | . . 1 6 3 . Heat Flow Errors 6 | . . . 4 2 . Energy Discharges 5 | . 1 1 1 2 . Data Loss (minor) 6 | . . 1 2 3 . Data Loss (major) 2 | . . 1 1 . . Misfires 2 | . . . . 2 . Overload Shots . | . . . . . . Overflow Damage 22 | . . . . . 22 Projectiles . | . . . . . . Explosions 22 | . . . . . 22 Melee . | . . . . . . Knockbacks . | . . . . . . Impact . | . . . . . . Kinetic . | . . . . . . Secondary . | . . . . . . Self-Inflicted Damage 77 | . 11 . . . 66 Shots 3 | . 1 . . . 2 Rammed 1 | . . 1 . . . Targets Rammed 1 | . . 1 . . . Kicked . | . . . . . . Crushed . | . . . . . . Highest Temperature 235 | . 43 . 235 207 25 Average Temperature 44 | . 9 . 100 99 7 Received Heat Transfer 1035 | . 198 . . . 837 Siege Activations . | . . . . . . Martial Activations . | . . . . . . Shielding Activations . | . . . . . . Robots Disrupted . | . . . . . . Combat Hostiles . | . . . . . . Robots Corrupted . | . . . . . . Combat Hostiles . | . . . . . . Parts Fried . | . . . . . . Impact Corruptions . | . . . . . . Robots Melted . | . . . . . . Combat Hostiles . | . . . . . . Parts Melted . | . . . . . . Heat Transferred . | . . . . . . Parts Sabotaged . | . . . . . . Parts Stolen . | . . . . . . Parts Stripped . | . . . . . . Power Chain Reactions . | . . . . . . Alert | -11 -10 -10 -10 -9 -8 ------- Run | Yrd Mat Min Exi Min Mat Maximum Alert Level . | . . . . . . Low Security (%) 100 | 100 100 100 . 100 100 Level 1 . | . . . . . . Level 2 . | . . . . . . Level 3 . | . . . . . . Level 4 . | . . . . . . Level 5 . | . . . . . . High Security . | . . . . . . Max Security . | . . . . . . Peak Influence 130 | 5 70 61 . 23 130 Initial 6 | . . 6 . . . Average 11 | 1 22 7 . 1 16 Influence Increases 820 | 10 261 69 . 23 457 Destroy 0b10 Robot/C 560 | . 160 60 . 20 320 Destroy 0b10 Robot/NC 45 | 10 15 . . . 20 Destroy Leader 128 | . 44 . . . 84 Allied During Kill 22 | . . 9 . 3 10 Successful Hack 11 | . 11 . . . . Disable Machine 15 | . 15 . . . . Destroy Structure 24 | . 16 . . . 8 Lose Combat Pursuer 15 | . . . . . 15 Influence Decreases 820 | 10 245 48 37 23 457 Entered New Map 47 | . . 10 37 . . Time Decay 583 | 10 214 38 . 23 298 Lost Part 119 | . . . . . 119 Lost Ally 40 | . . . . . 40 Purge Threat 31 | . 31 . . . . Squads Dispatched 8 | . 1 . . . 7 Investigation 3 | . . . . . 3 Extermination . | . . . . . . Reinforcement 3 | . 1 . . . 2 Assault 2 | . . . . . 2 Garrison . | . . . . . . Intercept . | . . . . . . Searches Triggered . | . . . . . . Construction Impeded . | . . . . . . Haulers Reinforced . | . . . . . . Active Scanning Responses . | . . . . . . Cargo Convoy Interrupts . | . . . . . . Stealth | -11 -10 -10 -10 -9 -8 --------- Run | Yrd Mat Min Exi Min Mat Distress Signals 4 | . 1 1 . . 2 Communications Jammed . | . . . . . . Distress Signals . | . . . . . . Times Spotted 57 | . 13 4 . 3 37 Peak Tracking Total 11 | . 4 1 . 4 11 Tactical Retreats 7 | . . . . . 7 Traps | -11 -10 -10 -10 -9 -8 ------- Run | Yrd Mat Min Exi Min Mat Traps Triggered 1 | . 1 . . . . Indirectly . | . . . . . . Trap Hack Attempts . | . . . . . . Triggered . | . . . . . . Disarmed . | . . . . . . Reprogrammed . | . . . . . . Reused . | . . . . . . Traps Extracted . | . . . . . . Installed . | . . . . . . Triggered . | . . . . . . Machines | -11 -10 -10 -10 -9 -8 ---------- Run | Yrd Mat Min Exi Min Mat Machines Disabled 1 | . 1 . . . . Max in Single Turn 1 | . 1 . . . . Garrison Access 1 | . . . . . 1 Machines Repaired . | . . . . . . Machines Dismantled . | . . . . . . Machines Sabotaged . | . . . . . . Overloaded Fab Kills . | . . . . . . Hacking | -11 -10 -10 -10 -9 -8 --------- Run | Yrd Mat Min Exi Min Mat Machines Accessed 14 | . 4 . 3 1 6 Terminals 9 | . 4 . . . 5 Fabricators . | . . . . . . Repair Stations . | . . . . . . Recycling Units . | . . . . . . Scanalyzers . | . . . . . . Garrison Access 1 | . . . . . 1 Total Hacks 52 | . 8 . 26 1 17 Successful 33 | . 4 . 26 1 2 Failed 19 | . 4 . . . 15 Catastrophic 6 | . 2 . . . 4 Database Lockouts . | . . . . . . Manual 20 | . 7 . 1 . 12 Terminals 22 | . 8 . . . 14 Fabricators . | . . . . . . Repair Stations . | . . . . . . Recycling Units . | . . . . . . Scanalyzers . | . . . . . . Garrison Access 3 | . . . . . 3 Terminal Hacks 32 | . 3 . 26 1 2 Record 25 | . . . 25 . . Part Schematic 1 | . 1 . . . . Open Door 1 | . . . . 1 . Unreport Threat 1 | . 1 . . . . Dispatch Records 1 | . . . . . 1 Investigation Status 1 | . 1 . . . . Zone Layout 1 | . . . . . 1 Proto ID Catalog 1 | . . . 1 . . Fabricator Hacks . | . . . . . . Repair Station Hacks . | . . . . . . Recycling Unit Hacks . | . . . . . . Scanalyzer . | . . . . . . Garrison Access Hacks . | . . . . . . Unauthorized Hacks 1 | . 1 . . . . Terminals 1 | . 1 . . . . Operators 1 | . 1 . . . . Fabricators . | . . . . . . Repair Stations . | . . . . . . Recycling Units . | . . . . . . Scanalyzers . | . . . . . . Garrison Access . | . . . . . . Data Cores Recovered . | . . . . . . Used . | . . . . . . Hacking Detections 8 | . 3 . . . 5 Full Trace Events 4 | . . . . . 4 Feedback Events . | . . . . . . Feedback Blocked . | . . . . . . Robot Schematics Acquired . | . . . . . . Robots Built . | . . . . . . Authchips . | . . . . . . Time . | . . . . . . Total Robot Build Rating . | . . . . . . Part Schematics Acquired 1 | . 1 . . . . Parts Built . | . . . . . . Authchips . | . . . . . . Time . | . . . . . . Total Part Build Rating . | . . . . . . Parts Repaired . | . . . . . . Time . | . . . . . . Parts Recycled . | . . . . . . Recycled Matter . | . . . . . . Retrieved Matter . | . . . . . . Retrieved Components . | . . . . . . Parts Scanalyzed . | . . . . . . Part Schematics Acquired . | . . . . . . Parts Damaged . | . . . . . . Bothacking | -11 -10 -10 -10 -9 -8 ------------ Run | Yrd Mat Min Exi Min Mat Used RIF Installer . | . . . . . . Robots Hacked . | . . . . . . Non-combat . | . . . . . . Combat . | . . . . . . Robot Hacks Applied . | . . . . . . Relay Couplers Released 1 | . . . . . 1 Machine Destruction 1 | . . . . . 1 Fabnet Peak Effective % . | . . . . . . Robots Rewired . | . . . . . . Allies Hacked . | . . . . . . Hacks Repelled . | . . . . . . Allies | -11 -10 -10 -10 -9 -8 -------- Run | Yrd Mat Min Exi Min Mat Total Allies 3 | . . 3 . . . Largest Group 3 | . . 3 3 3 3 Highest-Rated Group 40 | . . 40 40 40 40 Highest-Rated Ally 16 | . . 16 16 16 16 Total Orders . | . . . . . . Ally Attacks 50 | . . 13 . 1 36 Total Damage 563 | . . 143 . . 420 Kills 7 | . . 4 . 1 2 Allies Corrupted . | . . . . . . Allies Melted . | . . . . . . Intel | -11 -10 -10 -10 -9 -8 ------- Run | Yrd Mat Min Exi Min Mat Active Infowar (turns) 1800 | 31 227 . . . 1542 Sensors 22 | . . . . . 22 Terrain 1097 | . . . . . 1097 Seismic 258 | 31 227 . . . . ECM 423 | . . . . . 423 Robot Analysis Total . | . . . . . . Derelict Logs Recovered 3 | . . 2 . 1 . Drone Launches 2 | . . . . . 2 Drone Recoveries 2 | . . . . . 2 Exploration | -11 -10 -10 -10 -9 -8 ------------- Run | Yrd Mat Min Exi Min Mat Turns Passed 5764 | 130 754 572 1218 1390 1700 Spaces Moved 1900 | 59 362 336 379 426 338 Core 8 | 2 . . . . 6 Treads 1885 | 57 362 336 379 426 325 Legs . | . . . . . . Wheels 7 | . . . . . 7 Hover . | . . . . . . Flight . | . . . . . . Fastest Speed 50 | 50 160 160 320 320 230 Average Speed 251 | 156 160 160 320 320 294 Slowest Speed 1700 | 160 160 160 320 320 1700 Overloaded Moves . | . . . . . . Propulsion Burnouts . | . . . . . . Robots Hopped . | . . . . . . Potential Cave-ins . | . . . . . . Cave-ins Triggered . | . . . . . . Exploration Rate (%) 57 | 6 63 66 72 95 43 Regions Visited 5 Branch Regions 3 Pre-discovered Areas 2 | . . 1 1 . . Known Exits Taken . | . . . . . . Unknown Exits Taken 5 | 1 1 1 1 1 . Scrap Searched 4 | . . 1 . 3 . Spaces Dug 13 | . 7 . . . 6 Terrain Destroyed 27 | . 17 . . . 10 Melee 6 | . . . . . 6 Projectile . | . . . . . . AOE 21 | . 17 . . . 4 Terrain Rammed . | . . . . . . Walls Destroyed . | . . . . . . Machines Disabled . | . . . . . . Actions | -11 -10 -10 -10 -9 -8 --------- Run | Yrd Mat Min Exi Min Mat Total 2702 | 78 465 364 386 454 955 Wait 579 | . 32 . . 24 523 Move 1895 | 58 361 335 378 425 338 Hop . | . . . . . . Pick Up 47 | 3 14 11 3 3 13 Fast Attach 12 | 6 1 . . . 5 Attach 18 | 1 . . 1 1 15 Detach 3 | . . . 2 . 1 Swap 16 | . 8 4 1 1 2 Drop 15 | . 6 9 . . . Fire 105 | 10 43 4 . . 48 Melee 10 | . . . . . 10 Ram . | . . . . . . Kick . | . . . . . . Crush 1 | . . 1 . . . Escape Stasis . | . . . . . . Rewire 1 | . . . 1 . . Trap . | . . . . . . Miscellaneous . | . . . . . . Route ------- -11/Scrapyard -10/Materials (discovered 3 exits: [*Mat x2] / [*Min]) -10/Mines (discovered 3 exits: [*Mat] / *Exi / *Sub) -10/Exiles -9/Mines (discovered 2 exits: *Mat x2) -8/Materials (discovered 2 exits: *Fac x2) History --------- Turn | Location | Event 34 | -11/Scrapyard | Discovered new exit (range 13) 131 | -11/Scrapyard | Entered Materials 280 | -10/Materials | Discovered new exit (range 10) 309 | -10/Materials | Build established: Mutant 731 | -10/Materials | Discovered new exit (range 3) 772 | -10/Materials | Discovered new exit (range 7) 885 | -10/Materials | Entered Mines 959 | -10/Mines | Met a Derelict bent on vengeance 985 | -10/Mines | Discovered new exit (range 9) 1005 | -10/Mines | Identified exit to Subcaves 1137 | -10/Mines | Assisted by bots powering up and referring to "LRC-V3" 1177 | -10/Mines | Learned Materials stockpile data 1308 | -10/Mines | Excavation squad dispatched 1308 | -10/Mines | A large section of the Mines collapsed 1428 | -10/Mines | Discovered new exit (range 15) 1450 | -10/Mines | Deemed a non-threat by the Exiles lab entrance 1450 | -10/Mines | Discovered new exit (range 5) 1457 | -10/Mines | Entered Exiles 1457 | -10/Exiles | Accompanied by 3 allies 1543 | -10/Exiles | Met 8R-AWN 1594 | -10/Exiles | Met EX-HEX 1750 | -10/Exiles | Met EX-DEC 1833 | -10/Exiles | Learned location of Zion (-7) 2124 | -10/Exiles | Met EX-BIN 2179 | -10/Exiles | Aligned with FarCom system 2182 | -10/Exiles | Given EX-Vault access code 2291 | -10/Exiles | Opened EX-Vault 2310 | -10/Exiles | Found Deploy-a-Sentry 2314 | -10/Exiles | Found Deploy-a-Sentry 2318 | -10/Exiles | Found Deploy-a-Sentry 2412 | -10/Exiles | Warned to stay clear of 0b10 Research branches 2643 | -10/Exiles | Discovered new exit (range 10) 2675 | -10/Exiles | Left Exiles lab with Deploy-a-Sentry 2675 | -10/Exiles | Entered Mines 2675 | -9/Mines | Accompanied by 3 allies 3033 | -9/Mines | Learned 8 Materials zone layouts 3052 | -9/Mines | Found a damaged Exp. Sensor Array with a note attached 3059 | -9/Mines | Found Prototype Device 3494 | -9/Mines | Discovered new exit (range 4) 3511 | -9/Mines | Found the Drone Emporium 3526 | -9/Mines | Found Prototype Device 3886 | -9/Mines | Discovered new exit (range 15) 4065 | -9/Mines | Entered Materials 4065 | -8/Materials | Accompanied by 3 allies 4065 | -8/Materials | Evolved 4 slots: Power x1, Propulsion x1, Utility x2 4066 | -8/Materials | Identified exit to Factory 4201 | -8/Materials | Lost 3 allies 4231 | -8/Materials | Destroyed 7 combat bots 4239 | -8/Materials | Lost 3 parts (1p1n1w) 4287 | -8/Materials | Lost 3 parts (1p2n) 4403 | -8/Materials | Core integrity fell below 50% 4433 | -8/Materials | Lost 3 parts (1p2w) 4517 | -8/Materials | Identified Exp. Sensor Array 4518 | -8/Materials | Identified Splice Drone Bay 4570 | -8/Materials | Lost 3 parts (2u1w) 4974 | -8/Materials | Build established: Scavenger-Assassin 5201 | -8/Materials | Discovered exit to Factory (range 16) 5740 | -8/Materials | Core integrity fell below 20% 5765 | -8/Materials | Destroyed by H-61 Shepherd with Heavy Assault Cannon Last Messages --------------- K-01 Serf cleans the Pressure Siphon. K-01 Serf collects debris. C-30 ARC bursts open, deploying its payload. G-50 Soldier unfolds itself. L-31 Rogue unfolds itself. G-47 Trooper unfolds itself. I-25 Savior unfolds itself. C-30 ARC bursts open, deploying its payload. G-50 Soldier unfolds itself. G-47 Trooper unfolds itself. I-25 Savior unfolds itself. K-01 Serf collects debris. Critical hit (Burn: +37). Hadron Collector disabled. Lgt. Assault Rifle destroyed. U-05 Engineer builds a Door. Imp. Light Armor Plating destroyed. Lgt. Treads destroyed. Imp. Ion Engine destroyed. Lgt. Treads destroyed. Map ----- +----------------------------------------------------+ | #???# #??## #?# ??????? | | #?#?# """"""" ##?# ### ??????? | | #?#?# """"""" #??# ??????? | | #???# """"""" #??# ! ??????? | | ###?# """"""" #??# " """" ??????? | | ###???# """"""" #??# "G """" #??????? | | ???################# """ """" #??????? | | ???# %" #??????? | | ??## " #??????? | | ???# """" %""" #??????? | | #??# ######## """"% """" #??????? | | ##?# #?#????# H"""" """" #??????? | | "#?# ##???#?# #####?????? | | "### ######## =# ??????? | | # g # ""??????? | | # # ""??????? | | # u i [ # ""??????? | | ###+######+#+## i g # ??????? | | #?# # " g u ################??????? | | "" ### "T" # "="" g ##############?#??????? | | "" #?# # %""""gg b# #?#??????? | | "" ### # """ # """ """ #?#??????? | | #?# # % + """ """ #?#??????? | | ###[ [ # # """ """ #?#??????? | | ######?######## #####l##= #?#??????? | | ?######?# ##??## ######@###############?#??????? | | ??#######"###### w # #????????????#??????? | | #???## # # % #????????????#??????? | | #????# + + #????????????#??????? | | ??#??#* # # #???????????????????? | | ###??# # ###########???????????????????? | | ################ ########???#??????????##??????? | | # #??????#???????# ??????? | | # """ #??????????????# ??????? | | ################ # """ #??????????????# ??????? | | ##????# # ???????????????????????????????? | | #????# """ # ???????????????????????????????? | | #????# """ # ???????????????#???????????????? | | ##???# """ # ???????????????????????????????? | | #???# # ???????????????????????????????? | | ##???# + ???????????????????????????????? | | #????# # ???????????????????????????????? | | #????# "Y" # ???????????????????????????????? | | #????# """ # ???????????????????????????????? | | #????##########